Cogmind - Beta 14 @@@ ROGUE MODE // 2025.03.16 @ 10:16:35 Player: Yura Nebov Result: Destroyed by H-71 Marshal with Heavy Mass Driver Performance ------------- Evolutions (5) 2500 Regions Visited (13) 2600 Robots Destroyed (65) 325 Value Destroyed (2231) 2231 Prototype IDs (4) 80 Alien Tech Used (0) 0 Bonus (1056) 1056 TOTAL SCORE: 8792 Bonus ------- Follower Combat Kills 56 Entered DSFs 1000 Cogmind --------- Core Integrity 0/1000 Matter 187/300 Energy 59/100 System Corruption 5% Temperature Cool (0) Movement Core (50) Location -5/DSF Parts ------- > --- POWER (2) -------- (None) > --- PROPULSION (4) --- (None) > --- UTILITY (8) ------ (None) > --- WEAPON (3) ------- (None) > --- INVENTORY (5) ---- Wheel Improved Weapon Cycler Lance Lance Lance Peak State ------------ > --- POWER ------------ Fission Core Micro Fission Core > --- PROPULSION ------- Carbon-fiber Leg Improved Carbon-fiber Leg Flexi-carbon Leg Armored Leg > --- UTILITY ---------- Improved Cooling System Coolant Injector Large Storage Unit Experimental Sensor Array Advanced Signal Interpreter Terrain Scanner Terrain Scan Processor EM Disruption Field > --- WEAPON ----------- Variable Charge Gun Heavy Phase Cannon Heavy Phase Cannon > --- INVENTORY -------- Fission Core Carbon-fiber Leg Carbon-fiber Leg Wheel Improved Coolant Injector Matter Compressor Hardened Light Armor Plating Layered Medium Armor Plating Improved Focal Shield Improved Recalibrator Heavy Laser Heavy Flak Cannon Scatter Rocket Array Improved Datajack Great Axe [Rating: 83] Favorites ----------- Power Ion Engine Engine Ion Engine Power Core Fission Core Propulsion Wheel Treads Advanced Treads Leg Carbon-fiber Leg Wheel Wheel Hover Unit Combat Airjet Flight Unit Improved Surge Thruster Utility Large Storage Unit Device Improved Terrain Scanner Storage Large Storage Unit Processor Terrain Scan Processor Protection Improved Light Armor Plating Weapon Gatling Laser Energy Gun Gatling Laser Energy Cannon Heavy Particle Cannon Ballistic Gun Assault Rifle Ballistic Cannon Heavy Flak Cannon Launcher Scatter Rocket Array Slashing Weapon Great Axe Piercing Weapon Makeshift Spear Special Melee Weapon Improved Datajack Build | -11 -10 -10 -10 -9 -8 -7 -7 -6 -6 -5 -5 -5 -5 ------- Run | Yrd Mat Min Exi Min Mat Fac DSF Fac Ext Fac Was Fac DSF Slots Evolved 10 | . . . . . 4 2 . 2 . 2 . . . Power 1 | . . . . . . . . 1 . . . . . Propulsion 2 | . . . . . 2 . . . . . . . . Utility 6 | . . . . . 2 2 . . . 2 . . . Weapon 1 | . . . . . . . . 1 . . . . . Parts Attached 200 | 8 4 4 1 5 32 2 2 52 47 23 9 2 9 Power 12 | 1 1 . . . 2 . 1 2 2 2 . . 1 Engine 7 | 1 1 . . . 2 . . 1 1 1 . . . Core 5 | . . . . . . . 1 1 1 1 . . 1 Reactor . | . . . . . . . . . . . . . . Propulsion 65 | 3 . 2 . 1 13 . . 25 12 2 3 . 4 Treads 13 | . . . . . 7 . . 6 . . . . . Leg 18 | . . . . . . . . 4 9 2 3 . . Wheel 30 | 3 . 2 . 1 6 . . 15 3 . . . . Hover 2 | . . . . . . . . . . . . . 2 Flight 2 | . . . . . . . . . . . . . 2 Utility 79 | 2 3 2 1 2 10 2 1 11 27 12 2 2 2 Device 49 | 1 1 1 . 2 4 1 1 7 19 7 2 1 2 Storage 3 | 1 . 1 1 . . . . . . . . . . Processor 6 | . . . . . 2 1 . . . 2 . 1 . Hackware . | . . . . . . . . . . . . . . Protection 21 | . 2 . . . 4 . . 4 8 3 . . . Artifact . | . . . . . . . . . . . . . . Weapon 44 | 2 . . . 2 7 . . 14 6 7 4 . 2 Energy Gun 15 | 1 . . . . 2 . . 3 5 3 1 . . Energy Cannon 11 | . . . . . 4 . . 4 . 2 1 . . Ballistic Gun 2 | 1 . . . 1 . . . . . . . . . Ballistic Cannon 1 | . . . . . . . . . . . 1 . . Launcher 3 | . . . . . 1 . . 1 . . 1 . . Special Weapon . | . . . . . . . . . . . . . . Impact Weapon . | . . . . . . . . . . . . . . Slashing Weapon 3 | . . . . . . . . 2 . 1 . . . Piercing Weapon 4 | . . . . . . . . 2 . . . . 2 Special Melee Weapon 5 | . . . . 1 . . . 2 1 1 . . . Unidentified Prototypes 2 | . . . . 1 . . . 1 . . . . . Parts Lost 21 | . 1 . . . 3 . 2 1 1 . 8 . 5 Power 5 | . 1 . . . 1 . 1 1 . . 1 . . Propulsion 3 | . . . . . . . . . . . 1 . 2 Utility 8 | . . . . . 2 . 1 . 1 . 1 . 3 Weapon 5 | . . . . . . . . . . . 5 . . Highest Loss Streak 8 | . 1 . . . 1 . 2 1 1 . 8 . 5 To Critical Strikes 1 | . . . . . . . . . . . 1 . . Average Slot Usage (%) 94 | . 89 99 100 100 98 100 98 94 97 99 38 6 21 Engine 8 | . 13 14 14 14 9 7 5 3 6 4 1 . . Core 2 | . . . . . . . 1 5 6 5 1 . . Treads 2 | . . . . . 13 7 7 4 . . . . . Leg 7 | . . . . . . . . 6 23 23 8 . . Wheel 16 | . 28 27 28 28 22 23 23 14 2 . . . . Device 14 | . 1 14 14 14 9 15 15 11 15 23 9 4 7 Storage 9 | . 14 14 14 14 9 7 7 6 6 5 1 . . Processor 6 | . . . . . 7 15 15 13 11 11 7 2 3 Protection 2 | . 2 . . . 8 7 6 6 2 3 . . . Energy Gun 11 | . 14 14 14 14 6 . . 11 15 8 2 . . Energy Cannon 3 | . . . . . 7 15 15 5 4 5 2 . . Ballistic Gun 5 | . 14 14 14 13 4 . . . . . . . . Peak Build Rating 83 | 7 9 10 10 16 32 35 36 59 65 83 76 5 33 Average Rating 33 | 5 7 9 10 10 24 34 33 45 59 74 30 2 18 On Entrance 23 | . 7 8 10 10 11 30 35 31 52 58 77 1 5 Naked Turns 91 | . . . . . . . . . . . 86 5 . Heaviest Build 90 | 15 17 50 50 30 45 46 46 57 90 71 59 2 6 Greatest Support 84 | 26 20 20 20 20 84 30 30 84 71 69 66 3 12 Greatest Overweight (x) 5 | 1 . 2 2 1 1 1 1 5 1 1 2 . 1 Average Overweight (x) . | . . . 1 1 . 1 1 . . . . . . Largest Inventory Capacity 20 | 8 8 20 20 15 15 15 15 15 15 15 15 5 5 Average Capacity 13 | 7 8 9 19 15 15 15 15 15 15 15 9 5 5 Most Carried 15 | 6 8 10 10 15 15 15 15 15 15 15 15 5 5 Average Carried 12 | 1 7 8 10 13 14 14 14 14 14 14 7 3 4 Final Capacity 20 | 8 8 20 15 15 15 15 15 15 15 15 5 5 5 Final Carried 15 | 6 8 10 10 15 15 15 15 15 15 15 3 5 5 Class Distribution -------------------- 42% | Mutant 20% | Scavenger-Skirmisher 18% | Scavenger-Mutant 11% | Scavenger-Tank 4% | Scavenger-Assassin Dominant Class ---------------- Mutant | -10/Materials Mutant | -10/Mines Mutant | -10/Exiles Mutant | -9/Mines Scavenger-Mutant | -8/Materials Scavenger-Mutant | -7/Factory Scavenger-Mutant | -7/DSF Scavenger-Tank | -6/Factory Scavenger-Skirmisher | -6/Extension Scavenger-Skirmisher | -5/Factory Mutant | -5/Waste Mutant | -5/Factory Mutant | -5/DSF Resources | -11 -10 -10 -10 -9 -8 -7 -7 -6 -6 -5 -5 -5 -5 ----------- Run | Yrd Mat Min Exi Min Mat Fac DSF Fac Ext Fac Was Fac DSF Matter Collected 2589 | 314 4 107 . 90 369 . 23 739 454 224 250 . 15 Remotely . | . . . . . . . . . . . . . . Salvage Created 3210 | 199 52 110 . 48 536 . . 806 1064 395 . . . Parts 127 | 15 4 6 . 1 37 . . 27 24 13 . . . Haulers Intercepted 1 | . . . . . . . . 1 . . . . . Recyclers Shooed 8 | 1 . 2 . . 3 . . 2 . . . . . Parts Field Recycled . | . . . . . . . . . . . . . . Retrieved Matter . | . . . . . . . . . . . . . . Parts Self-Destructed . | . . . . . . . . . . . . . . Prevented . | . . . . . . . . . . . . . . Kills | -11 -10 -10 -10 -9 -8 -7 -7 -6 -6 -5 -5 -5 -5 ------- Run | Yrd Mat Min Exi Min Mat Fac DSF Fac Ext Fac Was Fac DSF Combat Hostiles Destroyed 40 | . 2 . . 1 11 . . 8 14 4 . . . Guns 22 | . 1 . . 1 6 . . 4 8 2 . . . Cannons 15 | . . . . . 3 . . 4 6 2 . . . AOE 3 | . 1 . . . 2 . . . . . . . . Classes Destroyed 12 | 2 2 1 . . 4 . . 1 2 . . . . Worker 4 | . . 1 . . . . . 3 . . . . . Builder 3 | . . . . . 2 . . 1 . . . . . Tunneler 8 | 5 . 1 . . . . . 2 . . . . . Hauler 1 | . . . . . . . . 1 . . . . . Recycler 7 | 1 . 1 . . 1 . . 1 2 1 . . . Watcher 2 | . 1 . . . . . . . . 1 . . . Swarmer 3 | . . . . . 3 . . . . . . . . Grunt 19 | . 2 . . 1 3 . . 7 5 1 . . . Sentry 11 | . . . . . 3 . . 1 7 . . . . Specialist 2 | . . . . . 2 . . . . . . . . Programmer 4 | . . . . . . . . . 1 3 . . . Behemoth 1 | . . . . . . . . . 1 . . . . Best Kill Streak 5 | 5 2 2 . 1 4 . . 4 3 4 . . . Combat Bots Only 4 | . 2 . . 1 4 . . 3 3 3 . . . Max Kills in Single Turn 3 | 1 2 1 . 1 3 . . 2 1 1 . . . Gunslinging . | . . . . . . . . . . . . . . Exploded 2 | . 1 . . . 2 . . . . . . . . Melee . | . . . . . . . . . . . . . . Uniques/NPCs Destroyed . | . . . . . . . . . . . . . . Combat | -11 -10 -10 -10 -9 -8 -7 -7 -6 -6 -5 -5 -5 -5 -------- Run | Yrd Mat Min Exi Min Mat Fac DSF Fac Ext Fac Was Fac DSF Hostile Shots Fired 436 | . 7 . . 7 53 . 14 51 163 87 10 . 44 Missed 132 | . 3 . . 3 10 . 6 17 59 15 . . 19 Damage Taken 4787 | 6 111 1 . 45 676 . 243 435 1056 989 428 . 797 Core 1335 | . 27 . . . 107 . . 68 107 64 396 . 566 Absorbed by Shields 179 | . . . . . . . . 28 151 . . . . Ignored by Resistances 235 | . . . . . . . . . 50 185 . . . Regen/Repaired (Parts) 60 | . . . . . . . . 60 . . . . . Core Remaining (%) 89 | 100 . . . 89 80 . 100 . 79 . . . . Volleys Fired 162 | 14 5 7 . 10 30 . . 29 40 17 10 . . Largest 3 | 2 2 2 . 2 2 . . 3 3 3 3 . . Hottest 255 | 70 70 70 . 70 135 . . 235 229 255 209 . . Shots Fired 384 | 27 10 14 . 20 58 . . 75 118 45 17 . . Gun 267 | 27 10 14 . 20 34 . . 44 87 22 9 . . Cannon 112 | . . . . . 22 . . 31 31 23 5 . . Launcher 5 | . . . . . 2 . . . . . 3 . . Special . | . . . . . . . . . . . . . . Kinetic 51 | 13 5 7 . 10 15 . . . . . 1 . . Thermal 328 | 14 5 7 . 10 41 . . 75 118 45 13 . . Explosive 5 | . . . . . 2 . . . . . 3 . . Electromagnetic . | . . . . . . . . . . . . . . Robot Hit Streak 26 | 6 3 8 . 5 13 . . 10 26 13 15 . . Robot Miss Streak 5 | 3 3 1 . 1 5 . . 4 3 2 5 . . Penetration Max . | . . . . . . . . . . . . . . Secondary Targets 2 | . . . . . . . . . 2 . . . . Max Gunslinging Chain 1 | . . . . . . . . . 1 . . . . Shots Hit Robots 319 | 15 5 10 . 16 45 . . 72 107 33 16 . . Core Hits 181 | 7 3 4 . 3 47 . . 40 58 15 4 . . Critical Kills 1 | . . . . . . . . . 1 . . . . Critical Parts Destroyed . | . . . . . . . . . . . . . . Critical Strikes 5 | . . . . 1 . . . 2 2 . . . . Burn 2 | . . . . 1 . . . . 1 . . . . Meltdown 1 | . . . . . . . . . 1 . . . . Sever 2 | . . . . . . . . 2 . . . . . Melee Attacks 38 | . . . . 3 . . . 21 10 4 . . . Impact . | . . . . . . . . . . . . . . Slashing 14 | . . . . . . . . 11 . 3 . . . Piercing 5 | . . . . . . . . 5 . . . . . Sneak Attacks 22 | . . . . 3 . . . 8 10 1 . . . Combat Hostiles . | . . . . . . . . . . . . . . Follow-up Attacks . | . . . . . . . . . . . . . . Damage Inflicted 8192 | 199 271 136 . 165 888 . . 1826 2355 1021 1331 . . Guns 4342 | 187 61 133 . 165 423 . . 857 1838 514 164 . . Cannons 1965 | . . . . . 310 . . 473 512 497 173 . . Explosions 1357 | . 210 . . . 153 . . . . . 994 . . Melee 473 | . . . . . . . . 473 . . . . . Ramming 55 | 12 . 3 . . 2 . . 23 5 10 . . . Kinetic 426 | 76 22 45 . 103 143 . . . . . 37 . . Thermal 6091 | 111 249 88 . 62 590 . . 1330 2350 1011 300 . . Explosive 1147 | . . . . . 153 . . . . . 994 . . Electromagnetic . | . . . . . . . . . . . . . . Impact . | . . . . . . . . . . . . . . Slashing 418 | . . . . . . . . 418 . . . . . Piercing 55 | . . . . . . . . 55 . . . . . Highest Corruption 5 | . . . . . . . . . . 3 5 5 5 Average Corruption 3 | . . . . . . . . . . 1 5 5 5 Corruption Purged . | . . . . . . . . . . . . . . Corruption Blocked . | . . . . . . . . . . . . . . Effects 6 | . . . . . . . . . . 2 3 . 1 Message Errors 1 | . . . . . . . . . . . . . 1 Matter Fused 2 | . . . . . . . . . . 2 . . . Heat Flow Errors 1 | . . . . . . . . . . . 1 . . Data Loss (major) 2 | . . . . . . . . . . . 2 . . Overload Shots . | . . . . . . . . . . . . . . Overflow Damage 73 | . 17 . . . . . . 32 10 14 . . . Projectiles 29 | . . . . . . . . 5 10 14 . . . Explosions 17 | . 17 . . . . . . . . . . . . Melee 27 | . . . . . . . . 27 . . . . . Knockbacks . | . . . . . . . . . . . . . . Impact . | . . . . . . . . . . . . . . Kinetic . | . . . . . . . . . . . . . . Secondary . | . . . . . . . . . . . . . . Self-Inflicted Damage 104 | 6 64 1 . . 22 . . 11 . . . . . Shots 2 | . 1 . . . 1 . . . . . . . . Rammed 5 | 2 . 1 . . 1 . . 1 . . . . . Targets Rammed 8 | 2 . 1 . . 1 . . 1 1 2 . . . Kicked 3 | . . . . . . . . . 1 2 . . . Crushed . | . . . . . . . . . . . . . . Highest Temperature 410 | 81 52 18 . 63 156 . . 198 410 196 181 . . Average Temperature 96 | 31 22 7 . 21 54 . . 114 129 113 101 . . Received Heat Transfer 901 | . 24 . . 24 198 . . 143 410 102 . . . Siege Activations . | . . . . . . . . . . . . . . Robots Corrupted . | . . . . . . . . . . . . . . Combat Hostiles . | . . . . . . . . . . . . . . Parts Fried . | . . . . . . . . . . . . . . Impact Corruptions . | . . . . . . . . . . . . . . Robots Melted 1 | . . . . . . . . . 1 . . . . Combat Hostiles . | . . . . . . . . . . . . . . Parts Melted 32 | . 2 . . . 1 . . 4 18 7 . . . Heat Transferred 11154 | 333 261 259 . 259 836 . . 2677 4710 1375 444 . . Parts Sabotaged . | . . . . . . . . . . . . . . Parts Stolen . | . . . . . . . . . . . . . . Parts Stripped . | . . . . . . . . . . . . . . Power Chain Reactions . | . . . . . . . . . . . . . . Alert | -11 -10 -10 -10 -9 -8 -7 -7 -6 -6 -5 -5 -5 -5 ------- Run | Yrd Mat Min Exi Min Mat Fac DSF Fac Ext Fac Was Fac DSF Peak Influence 326 | 30 166 74 . 50 326 96 82 235 288 220 93 19 21 Initial 110 | . 19 64 . . . 91 67 32 12 110 24 19 16 Average 85 | 12 124 32 . 8 158 91 70 93 161 97 36 19 6 Maximum Alert Level 1 | . . . . . 1 . . 1 1 1 . . . Low Security (%) 90 | 100 100 100 . 100 60 100 100 96 71 92 100 100 100 Level 1 9 | . . . . . 39 . . 3 28 7 . . . Level 2 . | . . . . . . . . . . . . . . Level 3 . | . . . . . . . . . . . . . . Level 4 . | . . . . . . . . . . . . . . Level 5 . | . . . . . . . . . . . . . . High Security . | . . . . . . . . . . . . . . Max Security . | . . . . . . . . . . . . . . Squads Dispatched 10 | . . . . . 1 . 1 2 2 3 . . 1 Investigation . | . . . . . . . . . . . . . . Extermination 3 | . . . . . . . . 1 . 2 . . . Reinforcement 7 | . . . . . 1 . 1 1 2 1 . . 1 Assault . | . . . . . . . . . . . . . . Garrison . | . . . . . . . . . . . . . . Intercept . | . . . . . . . . . . . . . . Searches Triggered . | . . . . . . . . . . . . . . Construction Impeded 2 | . . . . . . . . . 1 1 . . . Haulers Reinforced 1 | . . . . . . . . 1 . . . . . Active Scanning Responses . | . . . . . . . . . . . . . . Cargo Convoy Interrupts . | . . . . . . . . . . . . . . Stealth | -11 -10 -10 -10 -9 -8 -7 -7 -6 -6 -5 -5 -5 -5 --------- Run | Yrd Mat Min Exi Min Mat Fac DSF Fac Ext Fac Was Fac DSF Distress Signals 9 | . 2 . . 1 . . . . 5 1 . . . Communications Jammed . | . . . . . . . . . . . . . . Distress Signals . | . . . . . . . . . . . . . . Times Spotted 94 | . 5 . . 3 17 . 4 14 23 15 6 . 7 Peak Tracking Total 9 | . 3 . . 2 5 . 3 4 5 9 6 . 5 Tactical Retreats 6 | . . . . . 1 . 1 1 2 . . . 1 Traps | -11 -10 -10 -10 -9 -8 -7 -7 -6 -6 -5 -5 -5 -5 ------- Run | Yrd Mat Min Exi Min Mat Fac DSF Fac Ext Fac Was Fac DSF Traps Triggered 3 | . . . . . . . . . 1 1 . . 1 Indirectly . | . . . . . . . . . . . . . . Trap Hack Attempts . | . . . . . . . . . . . . . . Triggered . | . . . . . . . . . . . . . . Disarmed . | . . . . . . . . . . . . . . Reprogrammed . | . . . . . . . . . . . . . . Reused 3 | . . . . 3 . . . . . . . . . Traps Extracted . | . . . . . . . . . . . . . . Installed 3 | . . . . 3 . . . . . . . . . Triggered 3 | . . . . 3 . . . . . . . . . Most Traps Carried 1 | . . . . 1 1 . . . . . . . . Machines | -11 -10 -10 -10 -9 -8 -7 -7 -6 -6 -5 -5 -5 -5 ---------- Run | Yrd Mat Min Exi Min Mat Fac DSF Fac Ext Fac Was Fac DSF Machines Disabled 5 | . 2 . . . . . . 1 1 1 . . . Max in Single Turn 2 | . 2 . . . . . . 1 1 1 . . . Garrison Access 1 | . . . . . 1 . . . . . . . . Machines Repaired . | . . . . . . . . . . . . . . Machines Dismantled . | . . . . . . . . . . . . . . Machines Sabotaged . | . . . . . . . . . . . . . . Overloaded Fab Kills . | . . . . . . . . . . . . . . Hacking | -11 -10 -10 -10 -9 -8 -7 -7 -6 -6 -5 -5 -5 -5 --------- Run | Yrd Mat Min Exi Min Mat Fac DSF Fac Ext Fac Was Fac DSF Machines Accessed 29 | . 4 . 4 . 5 1 . 5 6 3 . 1 . Terminals 19 | . 4 . . . 4 1 . 3 6 . . 1 . Fabricators . | . . . . . . . . . . . . . . Repair Stations 2 | . . . . . . . . 1 . 1 . . . Recycling Units 2 | . . . . . . . . 1 . 1 . . . Scanalyzers 1 | . . . . . . . . . . 1 . . . Garrison Access 1 | . . . . . 1 . . . . . . . . Total Hacks 101 | . 14 . 49 . 8 1 . 8 13 7 . 1 . Successful 73 | . 5 . 49 . 4 1 . 4 5 4 . 1 . Failed 28 | . 9 . . . 4 . . 4 8 3 . . . Catastrophic 7 | . 1 . . . 2 . . 1 3 . . . . Database Lockouts . | . . . . . . . . . . . . . . Manual 23 | . 13 . . . 5 . . 4 1 . . . . Terminals 41 | . 14 . . . 7 1 . 5 13 . . 1 . Fabricators . | . . . . . . . . . . . . . . Repair Stations 6 | . . . . . . . . 2 . 4 . . . Recycling Units 2 | . . . . . . . . 1 . 1 . . . Scanalyzers 2 | . . . . . . . . . . 2 . . . Garrison Access 1 | . . . . . 1 . . . . . . . . Terminal Hacks 62 | . 4 . 49 . 1 1 . 1 5 . . 1 . Record 49 | . . . 49 . . . . . . . . . . Part Schematic 1 | . 1 . . . . . . . . . . . . Prototype ID Bank 1 | . 1 . . . . . . . . . . . . Open Door 1 | . . . . . . . . . 1 . . . . Open DSF 2 | . . . . . . 1 . . . . . 1 . Branch Access Points 3 | . 1 . . . 1 . . 1 . . . . . Alert Level 1 | . . . . . . . . . 1 . . . . Locate Traps 1 | . 1 . . . . . . . . . . . . Dispatch Records 1 | . . . . . . . . . 1 . . . . Hauler Manifests 1 | . . . . . . . . . 1 . . . . Zone Layout 1 | . . . . . . . . . 1 . . . . Fabricator Hacks . | . . . . . . . . . . . . . . Repair Station Hacks 4 | . . . . . . . . 2 . 2 . . . Scan Component 3 | . . . . . . . . 1 . 2 . . . Repair 1 | . . . . . . . . 1 . . . . . Recycling Unit Hacks 1 | . . . . . . . . 1 . . . . . Retrieve Components 1 | . . . . . . . . 1 . . . . . Scanalyzer 2 | . . . . . . . . . . 2 . . . Insert Component 1 | . . . . . . . . . . 1 . . . Analyze 1 | . . . . . . . . . . 1 . . . Garrison Access Hacks 1 | . . . . . 1 . . . . . . . . Seal Access 1 | . . . . . 1 . . . . . . . . Unauthorized Hacks 3 | . 1 . . . 2 . . . . . . . . Terminals 3 | . 1 . . . 2 . . . . . . . . Assimilate 1 | . . . . . 1 . . . . . . . . Botnet 2 | . 1 . . . 1 . . . . . . . . Fabricators . | . . . . . . . . . . . . . . Repair Stations . | . . . . . . . . . . . . . . Recycling Units . | . . . . . . . . . . . . . . Scanalyzers . | . . . . . . . . . . . . . . Garrison Access . | . . . . . . . . . . . . . . Data Cores Recovered . | . . . . . . . . . . . . . . Used . | . . . . . . . . . . . . . . Hacking Detections 21 | . 4 . . . 4 . . 5 5 2 . 1 . Full Trace Events . | . . . . . . . . . . . . . . Feedback Events . | . . . . . . . . . . . . . . Feedback Blocked . | . . . . . . . . . . . . . . Robot Schematics Acquired . | . . . . . . . . . . . . . . Robots Built . | . . . . . . . . . . . . . . Authchips . | . . . . . . . . . . . . . . Time . | . . . . . . . . . . . . . . Total Robot Build Rating . | . . . . . . . . . . . . . . Part Schematics Acquired 2 | . 1 . . . . . . . . 1 . . . Parts Built . | . . . . . . . . . . . . . . Authchips . | . . . . . . . . . . . . . . Time . | . . . . . . . . . . . . . . Total Part Build Rating . | . . . . . . . . . . . . . . Parts Repaired 1 | . . . . . . . . 1 . . . . . Time 44 | . . . . . . . . 44 . . . . . Parts Recycled . | . . . . . . . . . . . . . . Recycled Matter . | . . . . . . . . . . . . . . Retrieved Matter . | . . . . . . . . . . . . . . Retrieved Components . | . . . . . . . . . . . . . . Parts Scanalyzed 1 | . . . . . . . . . . 1 . . . Part Schematics Acquired 1 | . . . . . . . . . . 1 . . . Parts Damaged . | . . . . . . . . . . . . . . Bothacking | -11 -10 -10 -10 -9 -8 -7 -7 -6 -6 -5 -5 -5 -5 ------------ Run | Yrd Mat Min Exi Min Mat Fac DSF Fac Ext Fac Was Fac DSF Used RIF Installer . | . . . . . . . . . . . . . . Robots Hacked 7 | . . . . 2 . . . 4 . 1 . . . Non-combat 7 | . . . . 2 . . . 4 . 1 . . . Combat . | . . . . . . . . . . . . . . Robot Hacks Applied 8 | . . . . 2 . . . 5 . 1 . . . parse_system 2 | . . . . 2 . . . . . . . . . find_chute 6 | . . . . . . . . 5 . 1 . . . Relay Couplers Released . | . . . . . . . . . . . . . . Fabnet Peak Effective % . | . . . . . . . . . . . . . . Robots Rewired 4 | . . . . . . . . . 4 . . . . Allies Hacked . | . . . . . . . . . . . . . . Hacks Repelled . | . . . . . . . . . . . . . . Allies | -11 -10 -10 -10 -9 -8 -7 -7 -6 -6 -5 -5 -5 -5 -------- Run | Yrd Mat Min Exi Min Mat Fac DSF Fac Ext Fac Was Fac DSF Total Allies 5 | . . . . . 1 . . . 4 . . . . Largest Group 4 | . . . . . 1 . . . 4 1 . . . Highest-Rated Group 102 | . . . . . 10 . . . 102 31 . . . Highest-Rated Ally 31 | . . . . . 10 . . . 31 31 . . . Total Orders . | . . . . . . . . . . . . . . Ally Attacks 10 | . . . . . . . . . 10 . . . . Total Damage 292 | . . . . . . . . . 292 . . . . Kills 2 | . . . . . . . . . 2 . . . . Allies Corrupted . | . . . . . . . . . . . . . . Allies Melted . | . . . . . . . . . . . . . . Intel | -11 -10 -10 -10 -9 -8 -7 -7 -6 -6 -5 -5 -5 -5 ------- Run | Yrd Mat Min Exi Min Mat Fac DSF Fac Ext Fac Was Fac DSF Robot Analysis Total . | . . . . . . . . . . . . . . Derelict Logs Recovered 3 | . . 1 . 2 . . . . . . . . . Drone Launches . | . . . . . . . . . . . . . . Drone Recoveries . | . . . . . . . . . . . . . . Exploration | -11 -10 -10 -10 -9 -8 -7 -7 -6 -6 -5 -5 -5 -5 ------------- Run | Yrd Mat Min Exi Min Mat Fac DSF Fac Ext Fac Was Fac DSF Turns Passed 5510 | 103 151 885 556 547 494 72 101 842 690 802 161 45 61 Spaces Moved 3557 | 49 156 314 508 491 307 72 97 557 315 359 184 76 72 Core 282 | 5 . . . . . . . . . . 162 76 39 Treads 16 | . . . . . 8 . . 8 . . . . . Legs 676 | . . . . . . . . 47 248 359 22 . . Wheels 2550 | 44 156 314 508 491 299 72 97 502 67 . . . . Hover 1 | . . . . . . . . . . . . . 1 Flight 32 | . . . . . . . . . . . . . 32 Fastest Speed 27 | 50 80 80 95 95 95 95 95 95 95 120 50 50 27 Average Speed 99 | 83 80 88 108 95 96 95 95 98 122 140 61 50 41 Slowest Speed 190 | 100 80 110 110 95 152 95 95 155 190 190 190 50 100 Overloaded Moves . | . . . . . . . . . . . . . . Propulsion Burnouts . | . . . . . . . . . . . . . . Robots Hopped . | . . . . . . . . . . . . . . Cave-ins Triggered . | . . . . . . . . . . . . . . Exploration Rate (%) 44 | 3 41 59 91 87 35 3 87 17 40 10 79 3 68 Regions Visited 13 Branch Regions 4 Pre-discovered Areas 5 | . . 1 1 3 . . . . . . . . . Known Exits Taken 4 | . 1 . . . . 1 . 1 . . . 1 . Unknown Exits Taken 6 | 1 . 1 1 1 1 . . . 1 . . . . Scrap Searched 5 | . . 2 . 3 . . . . . . . . . Spaces Dug 10 | . . . . . . . . 4 . 6 . . . Terrain Destroyed 173 | . 27 . . . 29 . . 4 . 25 88 . . Melee 7 | . . . . . . . . 4 . 3 . . . Projectile 12 | . . . . . 5 . . . . 7 . . . AOE 154 | . 27 . . . 24 . . . . 15 88 . . Terrain Rammed . | . . . . . . . . . . . . . . Walls Destroyed . | . . . . . . . . . . . . . . Machines Disabled . | . . . . . . . . . . . . . . Actions | -11 -10 -10 -10 -9 -8 -7 -7 -6 -6 -5 -5 -5 -5 --------- Run | Yrd Mat Min Exi Min Mat Fac DSF Fac Ext Fac Was Fac DSF Total 5128 | 80 170 910 510 550 445 75 106 754 524 611 210 81 102 Wait 962 | 2 4 575 . 22 44 . 1 56 50 192 6 . 10 Move 3546 | 49 155 313 507 490 306 71 96 556 314 359 183 75 72 Hop . | . . . . . . . . . . . . . . Pick Up 91 | 6 1 5 1 11 14 2 4 14 22 4 . 3 4 Fast Attach 48 | 7 2 1 . . 4 . . 11 7 5 1 2 8 Attach 37 | . . . . . 9 2 1 4 13 3 4 . 1 Detach 15 | . 1 . . . 5 . . 2 2 3 1 . 1 Swap 115 | 1 2 3 1 5 19 . 1 37 27 15 4 . . Drop 99 | . . 5 1 6 13 . 3 23 33 7 1 1 6 Fire 162 | 14 5 7 . 10 30 . . 29 40 17 10 . . Melee 38 | . . . . 3 . . . 21 10 4 . . . Ram 4 | 1 . 1 . . 1 . . 1 . . . . . Kick 3 | . . . . . . . . . 1 2 . . . Crush . | . . . . . . . . . . . . . . Escape Stasis 5 | . . . . . . . . . 5 . . . . Rewire . | . . . . . . . . . . . . . . Trap 3 | . . . . 3 . . . . . . . . . Miscellaneous . | . . . . . . . . . . . . . . Route ------- -11/Scrapyard -10/Materials (discovered 2 exits: [*Mat] / *Min) -10/Mines (discovered 2 exits: [*Mat] / *Exi) -10/Exiles (discovered 2 exits: [*Min x2]) -9/Mines (discovered 2 exits: *Mat x2) -8/Materials -7/Factory -7/DSF -6/Factory (discovered 4 exits: Low x2 / *Ext x2) -6/Extension -5/Factory -5/Waste -5/Factory -5/DSF (discovered 1 exit: [*Fac]) History --------- Turn | Location | Event 27 | -11/Scrapyard | Discovered new exit (range 16) 104 | -11/Scrapyard | Entered Materials 113 | -10/Materials | Identified exit to Mines 179 | -10/Materials | Discovered new exit (range 6) 255 | -10/Materials | Entered Mines 278 | -10/Mines | Met a Derelict bent on vengeance 297 | -10/Mines | Discovered new exit (range 13) 326 | -10/Mines | Build established: Mutant 954 | -10/Mines | Deemed a non-threat by the Exiles lab entrance 954 | -10/Mines | Discovered new exit (range 5) 978 | -10/Mines | Received a Rocket Launcher from a helpful Derelict 1010 | -10/Mines | Learned location of Mines (-9) 1140 | -10/Mines | Entered Exiles 1155 | -10/Exiles | Discovered new exit (range 15) 1167 | -10/Exiles | Met 8R-AWN 1184 | -10/Exiles | Met EX-HEX 1221 | -10/Exiles | Met EX-BIN 1320 | -10/Exiles | Met EX-DEC 1324 | -10/Exiles | Learned location of Zion (-6) 1393 | -10/Exiles | Visited The Gauntlet 1684 | -10/Exiles | Discovered new exit (range 14) 1696 | -10/Exiles | Entered Mines 1697 | -9/Mines | Learned location of Storage (-9) 1913 | -9/Mines | Discovered new exit (range 8) 1953 | -9/Mines | Found a hidden stash of uninstalled traps 2094 | -9/Mines | Found a damaged Exp. Sensor Array with a note attached 2098 | -9/Mines | Found Prototype Device 2099 | -9/Mines | Identified Exp. Sensor Array 2126 | -9/Mines | A weapon hastily lodged in a ceiling crevice suddenly fell to the ground 2210 | -9/Mines | Discovered new exit (range 4) 2243 | -9/Mines | Entered Materials 2243 | -8/Materials | Evolved 4 slots: Propulsion x2, Utility x2 2440 | -8/Materials | Discovered new exit (range 16) 2737 | -8/Materials | Entered Factory 2737 | -7/Factory | Evolved 2 slots: Utility x2 2808 | -7/Factory | Identified exit to DSF 2809 | -7/Factory | Entered DSF 2867 | -7/DSF | Additional patrols routed to DSF 2894 | -7/DSF | Discovered new exit (range 14) 2910 | -7/DSF | Entered Factory 2910 | -6/Factory | Evolved 2 slots: Power x1, Weapon x1 3416 | -6/Factory | Identified exit to Lower Caves 3416 | -6/Factory | Identified exit to Extension 3465 | -6/Factory | Found Prototype Launcher 3465 | -6/Factory | Identified Scatter Rocket Array 3616 | -6/Factory | Repaired Coolant Injector 3752 | -6/Factory | Entered Extension 3799 | -6/Extension | Build established: Scavenger-Tank 3931 | -6/Extension | Found Hvy. Reactive Plating 4306 | -6/Extension | Spotted B-75 Beast 4361 | -6/Extension | Destroyed B-75 Beast 4372 | -6/Extension | Lost 3 allies 4400 | -6/Extension | Spotted B-75 Beast 4408 | -6/Extension | Allies destroyed B-75 Beast 4441 | -6/Extension | Discovered new exit (range 3) 4442 | -6/Extension | Entered Factory 4442 | -5/Factory | Accompanied by 1 ally 4442 | -5/Factory | Evolved 2 slots: Utility x2 4669 | -5/Factory | Build established: Scavenger-Skirmisher 4966 | -5/Factory | Discovered new exit (range 16) 4986 | -5/Factory | Identified exit to Upper Caves 5244 | -5/Factory | Sucked down chute 5244 | -5/Factory | Entered Waste 5262 | -5/Waste | Spotted C-40 Crusher 5281 | -5/Waste | Crushed by Compactor (1 part destroyed, 2 dropped) 5303 | -5/Waste | Crushed by Compactor (1 part destroyed, 2 dropped) 5306 | -5/Waste | Crushed by Compactor (1 part destroyed, 2 dropped) 5309 | -5/Waste | Crushed by Compactor (1 part destroyed, 2 dropped) 5312 | -5/Waste | Crushed by Compactor (1 part destroyed, 2 dropped) 5316 | -5/Waste | Crushed by Compactor (1 part destroyed, 2 dropped) 5319 | -5/Waste | Crushed by Compactor (1 part destroyed, 1 dropped) 5326 | -5/Waste | Spotted C-40 Crusher 5350 | -5/Waste | Lost 8 parts (1p1n1u5w) 5362 | -5/Waste | Spotted C-40 Crusher 5365 | -5/Waste | Spotted C-40 Crusher 5367 | -5/Waste | Spotted C-40 Crusher 5384 | -5/Waste | Spotted C-40 Crusher 5390 | -5/Waste | Discovered new exit (range 16) 5405 | -5/Waste | Entered Factory 5450 | -5/Factory | Identified exit to DSF 5450 | -5/Factory | Entered DSF 5460 | -5/DSF | Core integrity fell below 50% 5465 | -5/DSF | Discovered new exit (range 15) 5470 | -5/DSF | Additional patrols routed to DSF 5491 | -5/DSF | Core integrity fell below 20% 5511 | -5/DSF | Destroyed by H-71 Marshal with Heavy Mass Driver Last Messages --------------- 05475_ X-67 Chaingunner springs to life. 05477_ Acquired Adv. Sensor Array. 05486_ Imp. Surge Thruster destroyed. 05487_ Acquired Spear. 05493_ Dropped EM Disruption Field. 05494_ Imp. Surge Thruster destroyed. 05496_ Imp. Targeting Computer destroyed. 05496_ Dropped Imp. Coolant Injector. 05497_ Triggered Alarm Trap. 05497_ An alarm sounds. 05499_ Cmb. Airjet severed. 05501_ &,&|FDJI QRZLTP69OHZZDJH5SI7JQ7 QXGU:FG 05503_ Dropped Recoil Nullifier. 05503_ Dropped Component Analysis Suite. 05503_ Spear severed. 05504_ Acquired Lance. 05507_ Dropped Spear. 05508_ Acquired Lance. 05511_ Penetrated by Slug. 05511_ Adv. Sensor Array destroyed. Map ----- +----------------------------------------------------+ | | | | | | | | | | | | | | | | | | | | | | | | | | | ?????????????????????????????????????????????????? | | ?????????????????????????????????????????????????? | | ?????????????????????????????????????????????????? | | ?????????????????????????????????????????????????? | | ??????????????????????????????????????""?????????? | | ?????????????????????????????????????#"#?????????? | | ????????????????????#########???????##"####??????? | | ????????????????????# ///!!#########"""""#??????? | | ????????????????????# ///!!#///#//##"""""#??????? | | ????????????????????# / ""##"????? | | ????????????????????# %c !! """""????? | | ????????????????????### ### / # ## ""##?????? | | ??????????????????????# @#?#///# ###= ###??????? | | ????????????????????#!! !!########## ##???????? | | ????????????????????#!! !!#??????#// #???????? | | ????????????????????#!! !!#??????#// #???????? | | ????????????????????### ###??????### ##???????? | | ??????????????????????! !????????#// !/#???????? | | ?????????????????????!! !????????#// ! #???????? | | ?????????????????????!! !????????#// #???????? | | ????????????????????### #?????###### ###??????? | | ??????????????????????# ??#*??#!!!?# !!#??????? | | ??????????????????????A ##***#!!!## !!#??????? | | ?????????????????????? !!#??????? | | ?????????????????????? H !!#??????? | | ?????????????????????? !!#??????? | | ?????????????????????#A ##!!!# ## !!#??????? | | ??????????????????????# #?#!??# ?# !#??????? | | ?????????????????????## #?????###### ###??????? | | ?????????????????????!! !????????#!! #???????? | | ??????????????????????! !????????#!! #???????? | | ??????????????????????! !????????#!! #???????? | | ????????????????????### ##???????### ##???????? | | ????????????????????#!! !!???????# #???????? | | ????????????????????#!! !????????# #???????? | | ????????????????##??#!! !?########## ##???????? | | ?????????????#??#!!??#" #?#!!!# ### ###??????? | +----------------------------------------------------+ Best States ------------- Heat Dissipation 83 Coolant Potential 80 Energy Generation 31 Energy Capacity 500 Matter Stores 300 Matter Capacity 300 Sight Range 16 Robot Scan Range 20 Terrain Scan Range 16 Terrain Scan Density 85 Armor Coverage 600 Resistance: KI 40 Resistance: EM 25 Evasion (%) 64 Targeting Accuracy 6 Target Analysis 6 Core Analysis 6 Recoil Reduction 4 Item Schematics ----------------- Heat Sink | -10/Materials | Hacked Coolant Injector | -5/Factory | Scanalyzed Robot Schematics ------------------ None Fabricated ------------ Nothing Alien Tech Used ----------------- None Achievements -------------- A New Friend Challenges ------------ None Game ------ Seed WardroneCobblerCleaver Manual? 0 Play Time 03:15:52 Cumulative 70.4 hours Start 2025.03.15 @ 16:13:48 End 2025.03.16 @ 10:16:35 Sessions 8 Manual Loads 0 Difficulty Rogue Special Mode None Game No. 21 Rogue 21 Adventurer 0 Explorer 0 Win Type - Total 2 Types 1/0/0/1/0/0/0/0/0 Lore% 23 Gallery% 52 Achievement% 43 Wizard Run 0 Options --------- Layout 2 ASCII 0 Keyboard 0 Movement Mouse Keybinds 0 Fullscreen 2 Font 24/Smallcaps Map View 50x44 Zoom Use 0% Tactical HUD 1 Map Filters NONE Filters BRIGHTNESS(130) Steam 0 RUN: 68f2abbf-4aca-4e27-9e38-b03fe00247a7